fUSD/lending_fUSD_20260315
["ID","MTS","AMOUNT","RATE_DAILY","PERIOD"]
[408402565,1773568971598,-500.0,0.00012306,2]
[408402566,1773568971631,-500.0,0.00012306,2]
[408402567,1773568971662,-407.80055695,0.00012306,2]
[408402568,1773568971694,-500.0,0.00012306,2]
[408402569,1773568971728,-500.0,0.00012306,2]
[408402570,1773568971760,-500.0,0.00012306,2]
[408402571,1773568971795,-500.0,0.00012306,2]
[408402572,1773568971827,-500.0,0.00012306,2]
[408402573,1773568971905,-500.0,0.00012306,2]
[408402574,1773568971938,-500.0,0.00012306,2]
[408402575,1773568971981,-500.0,0.00012306,2]
[408402576,1773568972024,-500.0,0.00012306,2]
[408402577,1773568972061,-222.7792176,0.00012306,2]
[408402578,1773568972094,-500.0,0.00012306,2]
[408402579,1773568972126,-219.42083332,0.00012306,2]
[408402580,1773568972156,-500.0,0.00012306,2]
[408402581,1773568972185,-591.01596346,0.00012306,2]
[408402582,1773568972219,-500.0,0.00012306,2]
[408402583,1773568972252,-219.42083332,0.00012306,2]
[408402584,1773568973450,-140.416145,0.00012306,2]
[408402585,1773568973470,-359.583855,0.00012306,2]
[408402586,1773568973481,-140.416145,0.00012306,2]
[408402587,1773568973495,-79.00468832,0.00012306,2]
[408402588,1773568973504,-140.416145,0.00012306,2]
[408402589,1773568973518,-359.583855,0.00012306,2]
[408402590,1773568973528,-135.1524496,0.00012306,2]
[408402591,1773568987537,4543.867658,7.945e-05,2]
[408402594,1773569241369,400.0,0.000116,4]
[408402595,1773569243471,900.0,0.000117,4]
[408402596,1773569245556,1400.0,0.000118,4]
[408402597,1773569247774,1900.0,0.000119,4]
[408402598,1773569252297,3277.86787562,0.0002,120]
[408402599,1773569299556,150.0,0.00011815,2]
[408402602,1773569392909,5250.01,0.00012107,2]
[408402603,1773569392935,4187.7595034,0.00012107,2]
[408402606,1773569425765,5812.2504966,0.00012107,2]
[408402607,1773569425789,10000.01,0.00012107,2]
[408402608,1773569425812,1263.65247643,0.00012107,2]
[408402614,1773569432010,-604.899317,0.00012114,2]
[408402615,1773569432021,-249.0,0.00012114,2]
[408402616,1773569432033,-250.0,0.00012175,2]
[408402617,1773569432045,-157.37860078,0.00012197,2]
[408402618,1773569432056,-300.0,0.00012206,2]
[408402619,1773569432066,-300.0,0.00012206,2]
[408402620,1773569432077,-150.0,0.00012206,2]
[408402621,1773569432087,-300.0,0.00012206,2]
[408402622,1773569432098,-1200.0,0.00012206,2]
[408402623,1773569432110,-300.0,0.00012206,2]
[408402624,1773569432121,-684.585,0.00012207,2]
[408402625,1773569432131,-2500.0,0.00012207,2]
[408402626,1773569432141,-4850.41038725,0.00012207,2]
[408402631,1773569432241,-451.1077687,0.00012207,2]
[408402633,1773569432254,-934.702825,0.00012207,2]
[408402634,1773569432271,-5693.66644587,0.00012207,2]
[408402637,1773569432289,-1793.5136,0.00012207,2]
[408402639,1773569432301,-621583.84396585,0.00012207,2]
[408402641,1773569432313,-49669.77558296,0.00012207,2]
[408402643,1773569432325,-7375.21507337,0.00012207,2]
[408402646,1773569438017,-500.0,0.00012206,2]
[408402647,1773569438027,-155.94545232,0.00012206,2]
[408402648,1773569438035,-494.44415681,0.00012206,2]
[408402649,1773569438044,-72.52684176,0.00012206,2]
[408402650,1773569438056,-411.37307627,0.00012206,2]
[408402651,1773569438065,-15.77766784,0.00012206,2]
[408402652,1773569438076,-484.22233216,0.00012206,2]
[408402653,1773569438084,-500.0,0.00012206,2]
[408402654,1773569438093,-174.767326,0.00012206,2]
[408402655,1773569438102,-442.19676721,0.00012206,2]
[408402677,1773569440314,-57.80323279,0.00012206,2]
[408402678,1773569440324,-501.641492,0.00012206,2]
[408402679,1773569440333,-500.0,0.00012206,2]
[408402680,1773569440342,-500.0,0.00012206,2]
[408402681,1773569440352,-178.45708193,0.00012206,2]
[408402682,1773569440527,-321.54291807,0.00012206,2]
[408402683,1773569440538,-500.0,0.00012206,2]
[408402684,1773569440547,-500.0,0.00012206,2]
[408402685,1773569440557,-389.71030371,0.00012206,2]
[408402686,1773569440566,-500.0,0.00012206,2]
[408402687,1773569440577,-500.0,0.00012206,2]
[408402688,1773569440587,-500.0,0.00012206,2]
[408402689,1773569440597,-500.0,0.00012206,2]
[408402690,1773569440606,-615.10586105,0.00012206,2]
[408402691,1773569440615,-150.0,0.00012206,2]
[408402692,1773569440624,-500.0,0.00012206,2]
[408402693,1773569440634,-500.0,0.00012206,2]
[408402694,1773569440643,-500.0,0.00012206,2]
[408402695,1773569440653,-500.0,0.00012206,2]
[408402696,1773569440663,-500.0,0.00012206,2]
[408402697,1773569440672,-500.0,0.00012206,2]
[408402698,1773569440681,-500.0,0.00012206,2]
[408402700,1773569440690,-500.0,0.00012206,2]
[408402702,1773569440699,-500.0,0.00012206,2]
[408402703,1773569440709,-500.0,0.00012206,2]
[408402704,1773569440720,-500.0,0.00012206,2]
[408402705,1773569440729,-500.0,0.00012206,2]
[408402706,1773569440740,-500.0,0.00012206,2]
[408402707,1773569440750,-211.17859378,0.00012206,2]
[408402708,1773569440762,-500.0,0.00012206,2]
[408402709,1773569440772,-500.0,0.00012206,2]
[408402710,1773569440782,-500.0,0.00012206,2]
[408402711,1773569440791,-500.0,0.00012206,2]
[408402712,1773569440801,-500.0,0.00012206,2]
[408402713,1773569440811,-500.0,0.00012206,2]
[408402714,1773569440820,-500.0,0.00012206,2]
[408402715,1773569440830,-500.0,0.00012206,2]
[408402716,1773569440842,-500.0,0.00012206,2]
[408402717,1773569440852,-500.0,0.00012206,2]
[408402718,1773569440861,-500.0,0.00012206,2]
[408402719,1773569440871,-500.0,0.00012206,2]
[408402720,1773569440882,-500.0,0.00012206,2]
[408402721,1773569440891,-500.0,0.00012206,2]
[408402722,1773569440901,-500.0,0.00012206,2]
[408402723,1773569440913,-207.41272815,0.00012206,2]
[408402724,1773569440923,-500.0,0.00012206,2]
[408402725,1773569440932,-500.0,0.00012206,2]
[408402726,1773569440942,-500.0,0.00012206,2]
[408402727,1773569440951,-500.0,0.00012206,2]
[408402728,1773569440960,-500.0,0.00012206,2]
[408402729,1773569440970,-807116.631351,0.00012207,2]
[408402730,1773569440979,-2500000.0,0.00012207,2]
[408402731,1773569440989,-225.04792432,0.00012207,2]
[408402732,1773569440998,-20193.84849006,0.00012207,2]
[408402733,1773569441008,-153.25761505,0.00012207,2]
[408402734,1773569441018,-541.14117784,0.00012207,2]
[408402735,1773569441027,-172.176289,0.00012249,2]
[408402736,1773569441036,-500.0,0.00012273,2]
[408402737,1773569441046,-407.71239442,0.00012273,2]
[408402738,1773569441056,-157.37860078,0.00012297,2]
[408402739,1773569441066,-500.0,0.00012299,2]
[408402740,1773569441076,-500.0,0.00012299,2]
[408402741,1773569441085,-500.0,0.00012299,2]
[408402742,1773569441094,-200.0,0.00012299,2]
[408402743,1773569441105,-500.0,0.00012299,2]
[408402744,1773569441114,-500.0,0.00012299,2]
[408402745,1773569441126,-500.0,0.00012299,2]
[408402746,1773569441135,-500.0,0.00012299,2]
[408402747,1773569441147,-500.0,0.00012299,2]
[408402748,1773569441157,-500.0,0.00012299,2]
[408402749,1773569441167,-500.0,0.00012299,2]
[408402750,1773569441176,-500.0,0.00012299,2]
[408402751,1773569441186,-151.0,0.00012299,2]
[408402752,1773569441195,-151.0,0.00012299,2]
[408402753,1773569441206,-151.0,0.00012299,2]
[408402754,1773569441215,-151.0,0.00012299,2]
[408402755,1773569441225,-151.0,0.00012299,2]
[408402756,1773569441235,-151.0,0.00012299,2]
[408402757,1773569441245,-151.0,0.00012299,2]
[408402758,1773569441255,-151.0,0.00012299,2]
[408402759,1773569441265,-151.0,0.00012299,2]
[408402760,1773569441275,-151.0,0.00012299,2]
[408402761,1773569441285,-151.0,0.00012299,2]
[408402762,1773569441296,-151.0,0.00012299,2]
[408402763,1773569441306,-151.0,0.00012299,2]
[408402764,1773569441317,-151.0,0.00012299,2]
[408402765,1773569441327,-151.0,0.00012299,2]
[408402766,1773569441336,-151.0,0.00012299,2]
[408402767,1773569441346,-151.0,0.00012299,2]
[408402768,1773569441357,-151.0,0.00012299,2]
[408402769,1773569441368,-151.0,0.00012299,2]
[408402770,1773569441379,-151.0,0.00012299,2]
[408402771,1773569441388,-151.0,0.00012299,2]
[408402772,1773569441398,-151.0,0.00012299,2]
[408402773,1773569441407,-151.0,0.00012299,2]
[408402774,1773569441417,-151.0,0.00012299,2]
[408402775,1773569441426,-151.0,0.00012299,2]
[408402776,1773569441436,-151.0,0.00012299,2]
[408402777,1773569441446,-151.0,0.00012299,2]
[408402778,1773569441455,-151.0,0.00012299,2]
[408402779,1773569441465,-151.0,0.00012299,2]
[408402780,1773569441475,-151.0,0.00012299,2]
[408402781,1773569441486,-151.0,0.00012299,2]
[408402782,1773569441496,-3162.5727522,0.00012305,2]
[408402783,1773569441507,-3406.124251,0.00012305,2]
[408402784,1773569441519,-500.0,0.00012306,2]
[408402785,1773569441529,-214.85236077,0.00012306,2]
[408402786,1773569441538,-32957.4135,0.00012307,2]
[408402787,1773569441548,-1000.0,0.00012307,2]
[408402788,1773569441558,-151.0,0.00012307,2]
[408402789,1773569441567,-207.01766239,0.00012307,2]
[408402790,1773569441576,-504.62,0.00012329,2]
[408402791,1773569441585,-574.15668349,0.00012373,2]
[408402792,1773569441595,-500.0,0.00012373,2]
[408402793,1773569441604,-500.0,0.00012373,2]
[408402794,1773569441613,-500.0,0.00012373,2]
[408402795,1773569441622,-500.0,0.00012373,2]
[408402796,1773569441631,-500.0,0.00012373,2]
[408402797,1773569441640,-501.57053664,0.00012373,2]
[408402798,1773569441650,-500.0,0.00012373,2]
[408402799,1773569441659,-500.0,0.00012373,2]
[408402800,1773569441669,-500.0,0.00012373,2]
[408402801,1773569441679,-500.0,0.00012373,2]
[408402802,1773569441688,-500.0,0.00012373,2]
[408402803,1773569441698,-446.46468827,0.00012373,2]
[408402804,1773569441707,-500.0,0.00012373,2]
[408402805,1773569441716,-332.58199131,0.00012373,2]
[408402806,1773569441726,-500.0,0.00012373,2]
[408402807,1773569441737,-500.0,0.00012373,2]
[408402808,1773569441747,-500.0,0.00012373,2]
[408402809,1773569441756,-500.0,0.00012373,2]
[408402810,1773569441765,-500.0,0.0001258,2]
[408402811,1773569441775,-337.0,0.00012589,2]
[408402812,1773569441784,-273.0,0.00012589,2]
[408402813,1773569441793,-809.51594466,0.00012611,2]
[408402814,1773569441803,-2038.27628201,0.00012611,2]
[408402815,1773569441814,-737.70660848,0.00012611,2]
[408402816,1773569441823,-1648.45530892,0.00012611,2]
[408402817,1773569441833,-1916.65473612,0.00012611,2]
[408402818,1773569441845,-587.89993421,0.00012611,2]
[408402819,1773569441854,-858.0,0.00012614,2]
[408402820,1773569441864,-17075.91297302,0.0001264,2]
[408402821,1773569441873,-222.0,0.00012697,2]
[408402822,1773569441884,-286.0,0.00012718,2]
[408402823,1773569441896,-314.0,0.00012723,2]
[408402824,1773569441907,-500.0,0.00012729,2]
[408402825,1773569441917,-77272.65313651,0.0001273,2]
[408402826,1773569441927,-703.0,0.00012744,2]
[408402827,1773569441937,-1917.0,0.00012769,2]
[408402828,1773569441946,-500.0,0.00012784,2]
[408402829,1773569441956,-1290.0,0.00012795,2]
[408402830,1773569441966,-255.0,0.00012801,2]
[408402831,1773569441976,-1000.0,0.00012821,2]
[408402832,1773569441987,-307.0,0.00012826,2]
[408402833,1773569441998,-500.0,0.00012839,2]
[408402834,1773569442009,-200.0,0.00012847,2]
[408402835,1773569442019,-500.0,0.00012854,2]
[408402836,1773569442030,-264.53834822,0.00012893,2]
[408402837,1773569442039,-1000.0,0.00012921,2]
[408402838,1773569442049,-1000.0,0.00012921,2]
[408402839,1773569442058,-500.0,0.00012921,2]
[408402840,1773569442067,-1000.0,0.00012921,2]
[408402841,1773569442077,-1000.0,0.00012921,2]
[408402842,1773569442087,-1002.91358326,0.00012921,2]
[408402843,1773569442098,-312.49833716,0.00012921,2]
[408402844,1773569442107,-429.3358411,0.00012921,2]
[408402845,1773569442117,-1000.0,0.00012921,2]
[408402846,1773569442126,-1000.0,0.00012921,2]
[408402847,1773569442136,-1000.0,0.00012921,2]
[408402848,1773569442147,-1000.0,0.00012921,2]
[408402849,1773569442157,-1000.0,0.00012921,2]
[408402850,1773569442167,-5638.82810058,0.00013,2]
[408402851,1773569442178,-3398.69503067,0.00013,15]
[408402852,1773569442188,-5378.62134311,0.0001305,2]
[408402853,1773569442198,-20193.84849004,0.00013062,2]
[408402854,1773569442208,-2000.0,0.00013069,2]
[408402855,1773569442218,-1153.14,0.00013069,2]
[408402856,1773569442228,-500.0,0.00013128,2]
[408402857,1773569442238,-17075.91297302,0.00013172,2]
[408402858,1773569442247,-166.66,0.0001324,2]
[408402859,1773569442257,-166.66,0.00013241,2]
[408402860,1773569442267,-255.0,0.00013292,2]
[408402861,1773569442276,-250.0,0.00013325,2]
[408402862,1773569442286,-250.0,0.00013359,2]
[408402863,1773569442295,-5000.0,0.0001336,2]
[408402864,1773569442305,-1944.3742,0.0001337,2]
[408402865,1773569442314,-200.0,0.00013395,2]
[408402866,1773569442324,-420.0,0.00013397,2]
[408402867,1773569442333,-420.0,0.00013397,2]
[408402868,1773569442343,-420.0,0.00013397,2]
[408402869,1773569442352,-500.0,0.00013402,2]
[408402870,1773569442361,-1680.0,0.00013426,2]
[408402871,1773569442370,-1000.0,0.00013468,2]
[408402872,1773569442380,-874.70888613,0.00013468,2]
[408402873,1773569442389,-1509.80182332,0.00013468,2]
[408402874,1773569442399,-1500.0,0.00013468,2]
[408402875,1773569442408,-1120.49885968,0.00013468,2]
[408402876,1773569442418,-1500.0,0.00013468,2]
[408402877,1773569442427,-1000.0,0.00013468,2]
[408402878,1773569442436,-1500.0,0.00013468,2]
[408402879,1773569442445,-1462.0,0.00013494,2]
[408402880,1773569442454,-1000.0,0.000135,2]
[408402881,1773569442463,-166.66,0.00013519,2]
[408402882,1773569442473,-1691.0,0.00013521,2]
[408402883,1773569442481,-500.0,0.00013676,2]
[408402884,1773569442490,-166.66,0.00013677,2]
[408402885,1773569442500,-500.0,0.00013698,2]
[408402886,1773569442509,-500.0,0.00013698,2]
[408402887,1773569442519,-500.0,0.00013698,2]
[408402888,1773569442528,-500.0,0.00013698,2]
[408402889,1773569442537,-500.0,0.00013698,2]
[408402890,1773569442546,-500.0,0.00013698,2]
[408402891,1773569442556,-500.0,0.00013698,2]
[408402892,1773569442565,-500.0,0.00013698,2]
[408402893,1773569442576,-500.0,0.00013698,2]
[408402894,1773569442585,-500.0,0.00013698,2]
[408402895,1773569442596,-500.0,0.00013698,2]
[408402896,1773569442606,-500.0,0.00013698,2]
[408402897,1773569442617,-500.0,0.00013698,2]
[408402898,1773569442626,-500.0,0.00013698,2]
[408402899,1773569442637,-500.0,0.00013698,2]
[408402900,1773569442646,-500.0,0.00013698,2]
[408402901,1773569442657,-500.0,0.00013698,2]
[408402902,1773569442666,-500.0,0.00013698,2]
[408402903,1773569442677,-500.0,0.00013698,2]
[408402904,1773569442692,-515.50222331,0.00013698,2]
[408402905,1773569442707,-500.0,0.00013698,2]
[408402906,1773569442718,-500.0,0.00013698,2]
[408402907,1773569442727,-500.0,0.00013698,2]
[408402908,1773569442738,-215.30448155,0.00013698,2]
[408402909,1773569442748,-500.0,0.00013698,2]
[408402910,1773569442758,-500.0,0.00013698,2]
[408402911,1773569442767,-500.0,0.00013698,2]
[408402912,1773569442776,-500.0,0.00013698,2]
[408402913,1773569442785,-500.0,0.00013698,2]
[408402914,1773569442794,-517.30693522,0.00013698,2]
[408402915,1773569442803,-500.0,0.00013698,2]
[408402916,1773569442813,-500.0,0.00013698,2]
[408402917,1773569442823,-500.0,0.00013698,2]
[408402918,1773569442833,-500.0,0.00013698,2]
[408402920,1773569442850,-500.0,0.00013698,2]
[408402922,1773569442860,-500.0,0.00013698,2]
[408402924,1773569442869,-500.0,0.00013698,2]
[408402925,1773569442879,-500.0,0.00013698,2]
[408402926,1773569442891,-500.0,0.00013698,2]
[408402927,1773569442900,-500.0,0.00013698,2]
[408402928,1773569442910,-500.0,0.00013698,2]
[408402929,1773569442919,-500.0,0.00013698,2]
[408402930,1773569442929,-500.0,0.00013698,2]
[408402931,1773569442938,-500.0,0.00013698,2]
[408402932,1773569442948,-500.0,0.00013698,2]
[408402933,1773569442958,-500.0,0.00013698,2]
[408402934,1773569442968,-500.0,0.00013698,2]
[408402935,1773569442978,-564.65798041,0.00013698,2]
[408402936,1773569442989,-500.0,0.00013698,2]
[408402937,1773569442999,-535.51183506,0.00013698,2]
[408402938,1773569443009,-500.0,0.00013698,2]
[408402939,1773569443020,-261.45915393,0.00013698,2]
[408402940,1773569443030,-500.0,0.00013698,2]
[408402941,1773569443041,-500.0,0.00013698,2]
[408402942,1773569443050,-500.0,0.00013698,2]
[408402943,1773569443064,-376.74816547,0.00013698,2]
[408402944,1773569443076,-500.0,0.00013698,2]
[408402945,1773569443278,-500.0,0.00013698,2]
[408402946,1773569443296,-500.0,0.00013698,2]
[408402947,1773569443305,-500.0,0.00013698,2]
[408402948,1773569443315,-500.0,0.00013698,2]
[408402949,1773569443325,-500.0,0.00013698,2]
[408402950,1773569443334,-500.0,0.00013698,2]
[408402951,1773569443343,-500.0,0.00013698,2]
[408402952,1773569443353,-500.0,0.00013698,2]
[408402953,1773569443362,-500.0,0.00013698,2]
[408402954,1773569443372,-500.0,0.00013698,2]
[408402955,1773569443382,-500.0,0.00013698,2]
[408402956,1773569443395,-500.0,0.00013698,2]
[408402957,1773569443405,-500.0,0.00013698,2]
[408402959,1773569443415,-500.0,0.00013698,2]
[408402961,1773569443424,-500.0,0.00013698,2]
[408402963,1773569443434,-287.82528865,0.00013698,2]
[408402965,1773569443443,-500.0,0.00013698,2]
[408402967,1773569443453,-500.0,0.00013698,2]
[408402969,1773569443462,-500.0,0.00013698,2]
[408402971,1773569443474,-500.0,0.00013698,2]
[408402973,1773569443484,-500.0,0.00013698,2]
[408402975,1773569443494,-344.38732809,0.00013698,2]
[408402977,1773569443503,-500.0,0.00013698,2]
[408402979,1773569443513,-500.0,0.00013698,2]
[408402981,1773569443522,-500.0,0.00013698,2]
[408402983,1773569443532,-500.0,0.00013698,2]
[408402985,1773569443541,-500.0,0.00013698,2]
[408402987,1773569443551,-500.0,0.00013698,2]
[408402989,1773569443562,-500.0,0.00013698,2]
[408402991,1773569443572,-500.0,0.00013698,2]
[408402993,1773569443582,-500.0,0.00013698,2]
[408402995,1773569443592,-500.0,0.00013698,2]
[408402998,1773569443606,-500.0,0.00013698,2]
[408403000,1773569443615,-198.38986947,0.00013698,2]
[408403002,1773569443625,-500.0,0.00013698,2]
[408403004,1773569443635,-500.0,0.00013698,2]
[408403006,1773569443644,-579.837854,0.00013698,2]
[408403009,1773569443653,-500.0,0.00013698,2]
[408403012,1773569443663,-500.0,0.00013698,2]
[408403015,1773569443672,-500.0,0.00013698,2]
[408403017,1773569443683,-514.54953026,0.00013698,2]
[408403018,1773569443692,-500.0,0.00013698,2]
[408403019,1773569443702,-297.89846423,0.00013698,2]
[408403020,1773569443711,-500.0,0.00013698,2]
[408403021,1773569443722,-500.0,0.00013698,2]
[408403022,1773569443731,-500.0,0.00013698,2]
[408403023,1773569443741,-507.79083862,0.00013698,2]
[408403024,1773569443751,-500.0,0.00013698,2]
[408403025,1773569443760,-500.0,0.00013698,2]
[408403026,1773569443770,-500.0,0.00013698,2]
[408403027,1773569443779,-500.0,0.00013698,2]
[408403028,1773569443789,-500.0,0.00013698,2]
[408403029,1773569443798,-516.15125572,0.00013698,2]
[408403030,1773569443811,-500.0,0.00013698,2]
[408403031,1773569443821,-500.0,0.00013698,2]
[408403032,1773569443830,-511.1229767,0.00013698,2]
[408403033,1773569443843,-500.0,0.00013698,2]
[408403034,1773569443852,-500.0,0.00013698,2]
[408403035,1773569443862,-500.0,0.00013698,2]
[408403036,1773569443872,-500.0,0.00013698,2]
[408403037,1773569443883,-500.0,0.00013698,2]
[408403038,1773569443892,-500.0,0.00013698,2]
[408403039,1773569443902,-500.0,0.00013698,2]
[408403040,1773569443913,-500.0,0.00013698,2]
[408403041,1773569443922,-500.0,0.00013698,2]
[408403042,1773569443932,-500.0,0.00013698,2]
[408403043,1773569443941,-500.0,0.00013698,2]
[408403044,1773569443951,-500.0,0.00013698,2]
[408403045,1773569443960,-500.0,0.00013698,2]
[408403046,1773569443970,-500.0,0.00013698,2]
[408403047,1773569443980,-500.0,0.00013698,2]
[408403048,1773569443989,-500.0,0.00013698,2]
[408403049,1773569443999,-1842.25,0.00013699,2]
[408403050,1773569444010,-999.99,0.00013699,2]
[408403051,1773569444020,-499.99,0.00013699,2]
[408403052,1773569444030,-150.99,0.00013699,2]
[408403053,1773569444041,-32544.55,0.00013699,2]
[408403054,1773569444050,-299.99,0.00013699,2]
[408403055,1773569444060,-9999.99,0.00013699,2]
[408403056,1773569444070,-910.61,0.00013699,2]
[408403057,1773569444080,-150.99,0.00013699,2]
[408403058,1773569444090,-200.0,0.00013699,2]
[408403059,1773569444100,-331.2186495,0.00013699,2]
[408403060,1773569444110,-500.0,0.00013699,2]
[408403061,1773569444119,-500.0,0.00013699,2]
[408403062,1773569444130,-500.0,0.00013699,2]
[408403063,1773569444139,-500.0,0.00013699,2]
[408403064,1773569444150,-500.0,0.00013699,2]
[408403065,1773569444159,-500.0,0.00013699,2]
[408403066,1773569444169,-502.74232996,0.00013699,2]
[408403067,1773569444181,-160.06205431,0.00013699,2]
[408403068,1773569444191,-501.41774504,0.00013699,2]
[408403069,1773569444202,-500.0,0.00013699,2]
[408403070,1773569444212,-1559.44679366,0.00013699,2]
[408403071,1773569444224,-3810.77607359,0.00013733,2]
[408403072,1773569444237,-166.66,0.00013798,2]
[408403073,1773569444247,-500.0,0.00013916,2]
[408403074,1773569444257,-20193.84849004,0.00013917,2]
[408403075,1773569444267,-559.58,0.00013938,2]
[408403076,1773569444277,-200.0,0.00013943,2]
[408403077,1773569444287,-505.3214733,0.0001395,2]
[408403078,1773569444298,-2000.0,0.00014016,2]
[408403079,1773569444307,-573.6,0.00014049,2]
[408403080,1773569444317,-166.66,0.00014077,2]
[408403081,1773569444327,-156.145938,0.00014105,7]
[408403082,1773569444337,-166.66,0.00014114,2]
[408403083,1773569444347,-2293.44806772,0.0001421,7]
[408403084,1773569444358,-157.4552258,0.0001422,2]
[408403085,1773569444368,-1096.97307244,0.00014247,2]
[408403086,1773569444378,-1000.0,0.00014247,2]
[408403087,1773569444388,-1000.0,0.00014247,2]
[408403088,1773569444401,-1000.0,0.00014247,2]
[408403089,1773569444412,-1004.87765582,0.00014247,2]
[408403090,1773569444430,-1000.0,0.00014247,2]
[408403091,1773569444442,-1000.0,0.00014247,2]
[408403092,1773569444454,-169.5809409,0.00014263,2]
[408403093,1773569444465,-2296.618534,0.00014279,2]
[408403094,1773569444477,-166.66,0.00014356,2]
[408403095,1773569444488,-1141.0,0.00014386,2]
[408403096,1773569444500,-318.0,0.00014415,2]
[408403097,1773569444511,-369.0,0.00014444,2]
[408403098,1773569444524,-433.0,0.00014476,2]
[408403099,1773569444537,-200.0,0.00014491,2]
[408403100,1773569444549,-9437.76950339,0.00014505,2]
[408403101,1773569444561,-2000.0,0.00014521,2]
[408403102,1773569444571,-1153.14,0.00014521,2]
[408403103,1773569444583,-166.66,0.00014551,2]
[408403104,1773569444594,-2500.0,0.00014564,2]
[408403105,1773569444604,-166.66,0.00014634,2]
[408403106,1773569444614,-587.0,0.00014703,2]
[408403107,1773569444627,-587.0,0.00014703,2]
[408403108,1773569444637,-512.4448613,0.00014727,2]
[408403109,1773569444646,-2351.0,0.00014769,2]
[408403110,1773569444656,-20193.84849004,0.00014771,2]
[408403111,1773569444666,-974.77138768,0.00014795,2]
[408403112,1773569444677,-1500.0,0.00014795,2]
[408403113,1773569444689,-1000.0,0.00014795,2]
[408403114,1773569444701,-504.89540778,0.00014795,2]
[408403115,1773569444714,-405.85897198,0.00014795,2]
[408403116,1773569444724,-171.96548914,0.000149,2]
[408403117,1773569444735,-171.96548913,0.000149,2]
[408403118,1773569444745,-166.66,0.00014988,2]
[408403119,1773569444757,-250.0,0.00015,2]
[408403120,1773569444768,-2062.08797356,0.00015,2]
[408403121,1773569444779,-3179.30155397,0.00015,14]
[408403122,1773569444788,-8027.73774163,0.00015,2]
[408403123,1773569444798,-29514.51271304,0.00015,7]
[408403124,1773569444807,-200.0,0.00015039,2]
[408403125,1773569444819,-1295.71924551,0.00015112,2]
[408403126,1773569444829,-1517.64,0.000153,2]
[408403127,1773569444841,-2000.0,0.00015342,2]
[408403128,1773569444852,-511.28109922,0.000154,2]
[408403129,1773569444863,-166.66,0.00015425,2]
[408403130,1773569444872,-200.0,0.00015587,2]
[408403131,1773569444882,-20193.84849004,0.00015626,2]
[408403132,1773569444892,-736.0,0.00015758,2]
[408403133,1773569444902,-1000.0,0.0001589,2]
[408403134,1773569444912,-150.0,0.000159,2]
[408403135,1773569444924,-150.0,0.000159,2]
[408403136,1773569444936,-150.0,0.000159,2]
[408403137,1773569444946,-2300.0,0.000159,5]
[408403138,1773569444959,-5000.0,0.0001596,2]
[408403139,1773569444969,-2000.0,0.00015973,2]
[408403140,1773569444979,-1153.14,0.00015973,2]
[408403141,1773569444989,-5465.59101331,0.00016,2]
[408403142,1773569444999,-250.0,0.00016007,2]
[408403143,1773569445009,-225.0479243,0.00016054,2]
[408403144,1773569445019,-200.0,0.00016135,2]
[408403145,1773569445028,-823.0,0.00016138,2]